fUSD/lending_fUSD_20240117
["ID","MTS","AMOUNT","RATE_DAILY","PERIOD"]
[311911753,1705495839580,-500.0,0.00022462,2]
[311911755,1705495839589,-500.0,0.00022462,2]
[311911757,1705495839598,-500.0,0.00022462,2]
[311911759,1705495839607,-500.0,0.00022462,2]
[311911761,1705495839617,-500.0,0.00022462,2]
[311911763,1705495839626,-500.0,0.00022462,2]
[311911764,1705495839635,-164.12,0.00022462,2]
[311911766,1705495839644,-500.0,0.00022462,2]
[311911768,1705495839653,-849.32,0.00022462,2]
[311911770,1705495839662,-500.0,0.00022462,2]
[311911772,1705495839672,-500.0,0.00022462,2]
[311911774,1705495839681,-639.35,0.00022462,2]
[311911776,1705495839690,-500.0,0.00022462,2]
[311911778,1705495839699,-500.0,0.00022462,2]
[311911780,1705495839708,-500.0,0.00022462,2]
[311911782,1705495839717,-500.0,0.00022462,2]
[311911784,1705495839726,-500.0,0.00022462,2]
[311911786,1705495839735,-500.0,0.00022462,2]
[311911788,1705495839745,-500.0,0.00022462,2]
[311911790,1705495839754,-283.68927847,0.00022462,2]
[311911792,1705495839762,-500.0,0.00022462,2]
[311911794,1705495839772,-536.07099148,0.00022462,2]
[311911796,1705495839780,-500.0,0.00022462,2]
[311911798,1705495839789,-163.46,0.00022487,2]
[311911800,1705495839798,-499.99,0.00022487,2]
[311911802,1705495839809,-2278.48401393,0.000225,2]
[311911803,1705495839820,-297.02524488,0.00022535,2]
[311911806,1705495839829,-152.57,0.00022536,2]
[311911807,1705495839839,-256.83,0.00022548,2]
[311911809,1705495839848,-155.0,0.00022631,2]
[311911812,1705495839858,-156.41919929,0.00022631,2]
[311911814,1705495839868,-453.29064991,0.00022631,2]
[311911815,1705495839878,-1748.00258789,0.00022631,2]
[311911817,1705495839887,-2746.0468439,0.00022631,2]
[311911819,1705495839897,-211.58756355,0.00022631,2]
[311911821,1705495839909,-253.03927035,0.00022631,2]
[311911824,1705495839919,-628.42706181,0.00022631,2]
[311911825,1705495839929,-155.0,0.00022632,2]
[311911827,1705495839938,-2614.88594233,0.00022632,2]
[311911829,1705495839948,-575.5,0.00022633,2]
[311911832,1705495839957,-541.11,0.00022633,2]
[311911833,1705495839967,-500.0,0.00022633,2]
[311911835,1705495839976,-500.0,0.00022633,2]
[311911837,1705495839985,-399.61,0.00022633,2]
[311911839,1705495839994,-500.0,0.00022633,2]
[311911841,1705495840003,-500.0,0.00022633,2]
[311911843,1705495840012,-157.14,0.00022633,2]
[311911845,1705495840021,-500.0,0.00022633,2]
[311911847,1705495840030,-150.0,0.00022633,2]
[311911849,1705495840039,-500.0,0.00022633,2]
[311911852,1705495840049,-500.0,0.00022633,2]
[311911854,1705495840058,-192.02,0.00022633,2]
[311911856,1705495840067,-500.0,0.00022633,2]
[311911858,1705495840077,-198.05,0.00022633,2]
[311911860,1705495840086,-185.53,0.00022633,2]
[311911862,1705495840095,-500.0,0.00022633,2]
[311911864,1705495840104,-374.61,0.00022633,2]
[311911866,1705495840113,-500.0,0.00022633,2]
[311911868,1705495840122,-500.0,0.00022633,2]
[311911870,1705495840132,-500.0,0.00022633,2]
[311911872,1705495840142,-500.0,0.00022633,2]
[311911874,1705495840152,-500.0,0.00022633,2]
[311911876,1705495840163,-503.65,0.00022633,2]
[311911878,1705495840173,-500.0,0.00022633,2]
[311911880,1705495840186,-500.0,0.00022633,2]
[311911882,1705495840196,-500.0,0.00022633,2]
[311911884,1705495840205,-500.0,0.00022633,2]
[311911886,1705495840214,-152.53,0.00022633,2]
[311911888,1705495840223,-567.47471469,0.00022633,2]
[311911890,1705495840234,-500.0,0.00022633,2]
[311911892,1705495840243,-500.0,0.00022633,2]
[311911894,1705495840252,-500.0,0.00022633,2]
[311911896,1705495840262,-317.44,0.00022633,2]
[311911898,1705495840271,-500.0,0.00022633,2]
[311911900,1705495840280,-154.42,0.00022633,2]
[311911902,1705495840289,-500.0,0.00022633,2]
[311911904,1705495840298,-500.0,0.00022633,2]
[311911906,1705495840307,-185.86,0.00022633,2]
[311911908,1705495840316,-307.4,0.00022633,2]
[311911909,1705495840325,-500.0,0.00022633,2]
[311911911,1705495840335,-500.0,0.00022633,2]
[311911913,1705495840344,-372.57,0.00022633,2]
[311911915,1705495840354,-500.0,0.00022633,2]
[311911917,1705495840368,-500.0,0.00022633,2]
[311911919,1705495840377,-269.03,0.00022633,2]
[311911921,1705495840387,-76.37376851,0.00022633,2]
[311911924,1705495840400,-423.62623149,0.00022633,2]
[311911926,1705495840410,-500.0,0.00022633,2]
[311911928,1705495840422,-500.0,0.00022633,2]
[311911930,1705495840431,-500.0,0.00022633,2]
[311911932,1705495840440,-500.0,0.00022633,2]
[311911934,1705495840450,-500.0,0.00022633,2]
[311911936,1705495840459,-500.0,0.00022633,2]
[311911938,1705495840468,-500.0,0.00022633,2]
[311911940,1705495840477,-500.0,0.00022633,2]
[311911942,1705495840486,-500.0,0.00022633,2]
[311911944,1705495840495,-500.0,0.00022633,2]
[311911946,1705495840504,-331.28,0.00022633,2]
[311911948,1705495840514,-500.0,0.00022633,2]
[311911949,1705495840523,-500.0,0.00022633,2]
[311911952,1705495840532,-500.0,0.00022633,2]
[311911954,1705495840541,-117.3483099,0.00022633,2]
[311912035,1705495844136,-382.6516901,0.00022633,2]
[311912037,1705495844145,-500.0,0.00022633,2]
[311912039,1705495844156,-456.94,0.00022633,2]
[311912042,1705495844166,-462.94,0.00022633,2]
[311912045,1705495844177,-500.0,0.00022633,2]
[311912048,1705495844187,-500.0,0.00022633,2]
[311912051,1705495844196,-500.0,0.00022633,2]
[311912054,1705495844205,-500.0,0.00022633,2]
[311912057,1705495844214,-500.0,0.00022633,2]
[311912059,1705495844223,-709.61,0.00022633,2]
[311912063,1705495844234,-709.61,0.00022633,2]
[311912067,1705495844244,-500.0,0.00022633,2]
[311912070,1705495844253,-212.78,0.00022633,2]
[311912073,1705495844262,-500.0,0.00022633,2]
[311912076,1705495844272,-554.41,0.00022633,2]
[311912079,1705495844281,-500.0,0.00022633,2]
[311912082,1705495844291,-577.66,0.00022633,2]
[311912085,1705495844300,-500.0,0.00022633,2]
[311912088,1705495844309,-330.89,0.00022633,2]
[311912092,1705495844318,-500.0,0.00022633,2]
[311912095,1705495844327,-500.0,0.00022633,2]
[311912098,1705495844337,-205.28,0.00022633,2]
[311912101,1705495844346,-454.37,0.00022633,2]
[311912104,1705495844355,-500.0,0.00022633,2]
[311912107,1705495844365,-545.35,0.00022633,2]
[311912110,1705495844374,-500.0,0.00022633,2]
[311912113,1705495844383,-500.0,0.00022633,2]
[311912116,1705495844392,-322.11,0.00022633,2]
[311912119,1705495844401,-602.8,0.00022633,2]
[311912121,1705495844411,-541.55,0.00022633,2]
[311912123,1705495844421,-500.0,0.00022633,2]
[311912125,1705495844430,-316.37,0.00022633,2]
[311912127,1705495844439,-500.0,0.00022633,2]
[311912129,1705495844449,-500.0,0.00022633,2]
[311912131,1705495844458,-500.0,0.00022633,2]
[311912133,1705495844467,-270.78,0.00022633,2]
[311912135,1705495844476,-565.16,0.00022633,2]
[311912137,1705495844485,-500.0,0.00022633,2]
[311912139,1705495844494,-511.96,0.00022633,2]
[311912141,1705495844503,-532.79,0.00022633,2]
[311912143,1705495844513,-398.35,0.00022633,2]
[311912144,1705495844523,-500.0,0.00022633,2]
[311912145,1705495844532,-820.46,0.00022633,2]
[311912146,1705495844541,-439.9828909,0.00022633,2]
[311912147,1705495844558,-196.4871091,0.00022633,2]
[311912148,1705495844759,-500.0,0.00022633,2]
[311912149,1705495844769,-500.0,0.00022633,2]
[311912150,1705495844779,-923.85966588,0.00022633,2]
[311912151,1705495844791,-226.10033412,0.00022633,2]
[311912152,1705495844800,-500.0,0.00022633,2]
[311912153,1705495844809,-336.27,0.00022633,2]
[311912154,1705495844819,-500.0,0.00022633,2]
[311912155,1705495844828,-500.0,0.00022633,2]
[311912156,1705495844837,-346.98119689,0.00022633,2]
[311912157,1705495844868,-153.01880311,0.00022633,2]
[311912158,1705495844877,-500.0,0.00022633,2]
[311912159,1705495844887,-500.0,0.00022633,2]
[311912160,1705495844896,-500.0,0.00022633,2]
[311912162,1705495844905,-500.0,0.00022633,2]
[311912164,1705495844914,-301.61,0.00022633,2]
[311912166,1705495844924,-49.41506933,0.00022633,2]
[311912168,1705495844935,-450.58493067,0.00022633,2]
[311912170,1705495844944,-145.41506933,0.00022633,2]
[311912173,1705495844956,-359.74493067,0.00022633,2]
[311912174,1705495844965,-271.72306282,0.00022633,2]
[311912177,1705495844976,-183.91693718,0.00022633,2]
[311912178,1705495844986,-500.0,0.00022633,2]
[311912179,1705495844995,-5337.69,0.00022633,2]
[311912180,1705495845004,-602.39,0.00022633,2]
[311912181,1705495845013,-517.46,0.00022633,2]
[311912183,1705495845023,-648.2,0.00022633,2]
[311912185,1705495845032,-304.52,0.00022633,2]
[311912187,1705495845040,-414.57,0.00022633,2]
[311912189,1705495845050,-500.0,0.00022633,2]
[311912191,1705495845058,-500.0,0.00022633,2]
[311912193,1705495845068,-312.76,0.00022633,2]
[311912195,1705495845077,-500.0,0.00022633,2]
[311912197,1705495845086,-500.0,0.00022633,2]
[311912198,1705495845095,-456.2,0.00022633,2]
[311912201,1705495845104,-500.0,0.00022633,2]
[311912202,1705495845113,-500.0,0.00022633,2]
[311912205,1705495845123,-401.15,0.00022633,2]
[311912207,1705495845132,-639.14,0.00022633,2]
[311912208,1705495845141,-500.0,0.00022633,2]
[311912210,1705495845153,-242.9,0.00022633,2]
[311912212,1705495845163,-206.75,0.00022633,2]
[311912215,1705495845174,-500.0,0.00022633,2]
[311912217,1705495845183,-151.35,0.00022633,2]
[311912219,1705495845192,-390.75990434,0.00022633,2]
[311912221,1705495845204,-109.24009566,0.00022633,2]
[311912223,1705495845215,-500.0,0.00022633,2]
[311912225,1705495845225,-410.68792614,0.00022633,5]
[311912229,1705495845266,-430.47207386,0.00022633,5]
[311912231,1705495845274,-500.0,0.00022633,2]
[311912233,1705495845283,-500.0,0.00022633,2]
[311912234,1705495845292,-500.0,0.00022633,2]
[311912235,1705495845301,-500.0,0.00022633,2]
[311912236,1705495845310,-584.57,0.00022633,2]
[311912237,1705495845319,-262.3811204,0.00022633,2]
[311912238,1705495845327,-500.0,0.00022633,2]
[311912239,1705495845336,-199.7,0.00022633,2]
[311912240,1705495845345,-500.0,0.00022633,2]
[311912241,1705495845354,-500.0,0.00022633,2]
[311912243,1705495845363,-500.0,0.00022633,2]
[311912245,1705495845372,-500.0,0.00022633,2]
[311912247,1705495845381,-509.00353032,0.00022633,2]
[311912249,1705495845390,-500.0,0.00022633,2]
[311912251,1705495845399,-500.0,0.00022633,2]
[311912253,1705495845407,-500.0,0.00022633,2]
[311912254,1705495845417,-500.0,0.00022633,2]
[311912256,1705495845426,-500.0,0.00022633,2]
[311912258,1705495845435,-500.0,0.00022633,2]
[311912261,1705495845444,-500.0,0.00022633,2]
[311912263,1705495845454,-500.0,0.00022633,2]
[311912264,1705495845463,-500.0,0.00022633,2]
[311912266,1705495845472,-500.0,0.00022633,2]
[311912268,1705495845481,-335.08,0.00022633,2]
[311912271,1705495845490,-500.0,0.00022633,2]
[311912272,1705495845499,-500.0,0.00022633,2]
[311912275,1705495845508,-500.0,0.00022633,2]
[311912276,1705495845517,-195.07,0.00022633,2]
[311912278,1705495845527,-500.0,0.00022633,2]
[311912279,1705495845536,-500.0,0.00022633,2]
[311912280,1705495845545,-546.9,0.00022633,2]
[311912281,1705495845555,-500.0,0.00022633,2]
[311912282,1705495845565,-815.75,0.00022633,2]
[311912283,1705495845574,-500.0,0.00022633,2]
[311912284,1705495845583,-500.0,0.00022633,2]
[311912285,1705495845593,-500.0,0.00022633,2]
[311912286,1705495845602,-500.0,0.00022633,2]
[311912287,1705495845612,-571.66,0.00022633,2]
[311912288,1705495845622,-294.72,0.00022633,2]
[311912289,1705495845631,-500.0,0.00022633,2]
[311912290,1705495845640,-500.0,0.00022633,2]
[311912291,1705495845649,-500.0,0.00022633,2]
[311912292,1705495845658,-500.0,0.00022633,2]
[311912293,1705495845668,-42.45827542,0.00022633,2]
[311912294,1705495845681,-378.80377185,0.00022633,2]
[311912295,1705495845709,151.0,0.00023284,7]
[311912304,1705495846452,-78.73795273,0.00022633,2]
[311912305,1705495846461,-162.61,0.00022633,2]
[311912306,1705495846470,-503.11,0.00022633,2]
[311912307,1705495846479,-547.83,0.00022633,2]
[311912308,1705495846488,-500.0,0.00022633,2]
[311912309,1705495846498,-519.81,0.00022633,5]
[311912310,1705495846507,-500.0,0.00022633,2]
[311912311,1705495846515,-193.4,0.00022633,2]
[311912312,1705495846525,-500.0,0.00022633,2]
[311912313,1705495846534,-500.0,0.00022633,2]
[311912314,1705495846543,-372.62,0.00022633,2]
[311912315,1705495846552,-500.0,0.00022633,2]
[311912316,1705495846561,-500.0,0.00022633,2]
[311912317,1705495846570,-284.69,0.00022633,2]
[311912318,1705495846579,-500.0,0.00022633,2]
[311912319,1705495846588,-500.0,0.00022633,2]
[311912320,1705495846597,-500.0,0.00022633,2]
[311912321,1705495846607,-500.0,0.00022633,2]
[311912322,1705495846616,-500.0,0.00022633,2]
[311912323,1705495846626,-500.0,0.00022633,2]
[311912324,1705495846635,-105265.58371258,0.00022634,2]
[311912325,1705495846650,-548.68195015,0.00022634,2]
[311912327,1705495847896,151.0,0.00023284,7]
[311912329,1705495877472,151.0,0.00023,7]
[311912330,1705495877745,151.0,0.00023,7]
[311912331,1705495878537,151.0,0.00023455,7]
[311912332,1705495879106,151.0,0.00024003,7]
[311912333,1705495879418,151.0,0.00024825,7]
[311912334,1705495879728,151.0,0.00025647,7]
[311912335,1705495880184,151.0,0.00026743,7]
[311912336,1705495881303,249.755212,0.00023,7]
[311912337,1705495885817,151.0,0.00023,7]
[311912338,1705495886089,151.0,0.00023,7]
[311912339,1705495886387,300.884337,0.00023455,7]
[311912340,1705495891448,151.0,0.00023,7]
[311912341,1705495891720,151.0,0.00023,7]
[311912342,1705495891986,151.0,0.00023455,7]
[311912343,1705495892305,151.0,0.00024003,7]
[311912344,1705495892959,216.469818,0.00024825,7]
[311912345,1705495899897,151.0,0.00023,7]
[311912346,1705495900205,151.0,0.00023,7]
[311912347,1705495900485,151.0,0.00023455,7]
[311912348,1705495900867,151.0,0.00024003,7]
[311912349,1705495901023,151.0,0.00024825,7]
[311912350,1705495901292,151.0,0.00025647,7]
[311912351,1705495901622,151.0,0.00026743,7]
[311912352,1705495902719,151.0,0.00023,7]
[311912353,1705495903400,151.0,0.00023,7]
[311912354,1705495903690,151.0,0.00023455,7]
[311912355,1705495914594,2442.46915,0.00023,7]
[311912356,1705495914883,2442.46915,0.00023,7]
[311912357,1705495915148,2442.46915,0.00023455,7]
[311912358,1705495915469,2442.46915,0.00024003,7]
[311912359,1705495915750,2442.46915,0.00024825,7]
[311912360,1705495916006,2442.46915,0.00025647,7]
[311912361,1705495916304,2442.46915,0.00026743,7]
[311912362,1705495917462,2442.46915,0.00023,7]
[311912363,1705495917730,2442.46915,0.00023,7]
[311912364,1705495917980,2442.46915,0.00023455,7]
[311912365,1705495918271,2442.46915,0.00024003,7]
[311912366,1705495918494,500.0,0.00022633,7]
[311912367,1705495918681,2442.46915,0.00024825,7]
[311912368,1705495918744,500.0,0.00022907,7]
[311912369,1705495918962,2442.46915,0.00025647,7]
[311912370,1705495919021,500.0,0.00023181,7]
[311912371,1705495919224,2442.46915,0.00026743,7]
[311912372,1705495919285,500.0,0.00023455,7]
[311912373,1705495927450,151.0,0.00023,7]
[311912374,1705495927713,151.0,0.00023,7]
[311912375,1705495928006,151.0,0.00023455,7]
[311912376,1705495928297,151.0,0.00024003,7]
[311912377,1705495928565,151.0,0.00024825,7]
[311912378,1705495928839,151.0,0.00025647,7]
[311912379,1705495929739,151.0,0.00026743,7]
[311912380,1705495930871,151.0,0.00023,7]
[311912381,1705495931265,151.0,0.00023,7]
[311912382,1705495931728,151.0,0.00023455,7]
[311912383,1705495931779,267.765972,0.00024003,7]
[311912384,1705495935898,151.0,0.00023,7]
[311912385,1705495936158,151.0,0.00023,7]
[311912386,1705495936438,151.0,0.00023455,7]
[311912387,1705495936700,161.712284,0.00024003,7]
[311912388,1705495940468,151.0,0.00023,7]
[311912389,1705495940557,328.80060866,0.00022998,10]
[311912390,1705495940756,151.433301,0.00023,7]
[311912391,1705495943445,1344.80222,0.00027,7]
[311912392,1705495943948,151.0,0.00023,7]
[311912393,1705495944225,151.0,0.00023,7]
[311912394,1705495944516,151.0,0.00023455,7]
[311912395,1705495944819,157.879033,0.00024003,7]
[311912396,1705495987482,325.44,0.00019844,2]
[311912397,1705496000908,151.0,0.0002298,7]
[311912398,1705496001163,151.0,0.00023,7]
[311912399,1705496001796,151.0,0.00023,7]
[311912400,1705496002090,151.0,0.00023,7]
[311912401,1705496002359,151.0,0.00023455,7]
[311912402,1705496002638,151.0,0.00023832,7]
[311912403,1705496003058,151.0,0.00024379,7]
[311912404,1705496003323,151.0,0.00025099,7]
[311912405,1705496003636,151.0,0.00025921,7]
[311912406,1705496003896,151.0,0.00026761,7]
[311912407,1705496004341,151.0,0.0002298,7]
[311912408,1705496004443,151.0,0.00023,7]
[311912409,1705496004715,151.0,0.00023,7]
[311912410,1705496004979,151.0,0.00023,7]
[311912411,1705496005312,151.0,0.00023455,7]
[311912412,1705496005577,151.0,0.00023832,7]
[311912413,1705496005843,151.0,0.00024379,7]
[311912414,1705496006105,151.0,0.00025099,7]
[311912415,1705496006409,284.276241,0.00025921,7]
[311912416,1705496018633,151.0,0.0002298,7]
[311912417,1705496018908,151.0,0.00023,7]
[311912418,1705496019185,151.0,0.00023,7]
[311912419,1705496019441,151.0,0.00023,7]
[311912420,1705496019702,151.0,0.00023455,7]
[311912421,1705496019955,151.0,0.00023832,7]
[311912422,1705496020249,151.0,0.00024379,7]
[311912423,1705496020534,151.0,0.00025099,7]
[311912424,1705496020826,151.0,0.00025921,7]
[311912425,1705496021072,151.0,0.00026761,7]
[311912426,1705496021706,151.0,0.0002298,7]
[311912427,1705496022011,151.0,0.00023,7]
[311912428,1705496022295,151.0,0.00023,7]
[311912429,1705496022565,151.0,0.00023,7]
[311912430,1705496022839,151.0,0.00023455,7]
[311912431,1705496023107,280.69325,0.00023832,7]
[311912433,1705496054584,151.0,0.0002298,7]
[311912434,1705496054834,151.0,0.00023,7]
[311912435,1705496055131,151.0,0.00023,7]
[311912436,1705496055408,151.0,0.00023,7]
[311912437,1705496055666,151.0,0.00023288,7]
[311912438,1705496056581,162.955583,0.00023729,7]
[311912439,1705496058762,284.9,0.0002298,7]
[311912440,1705496063772,151.0,0.0002298,7]
[311912441,1705496064053,151.0,0.00023,7]
[311912443,1705496064343,151.0,0.00023,7]
[311912444,1705496064629,151.0,0.00023,7]
[311912445,1705496064905,151.0,0.00023288,7]
[311912446,1705496065158,157.930629,0.00023729,7]
[311912447,1705496068942,1674.56,0.0002,2]
[311912448,1705496068968,2000.0,0.0002,2]
[311912449,1705496068993,2000.0,0.0002,2]
[311912450,1705496069017,2000.0,0.0002,2]
[311912451,1705496069040,2000.0,0.0002,2]
[311912452,1705496069064,2000.0,0.0002,2]
[311912453,1705496069090,2000.0,0.0002,2]
[311912454,1705496069115,1495.87,0.0002,2]
[311912455,1705496069139,2000.0,0.0002,2]
[311912456,1705496069163,2000.0,0.0002,2]
[311912457,1705496069187,2000.0,0.0002,2]
[311912458,1705496069213,2000.0,0.0002,2]
[311912459,1705496120406,151.0,0.000229,7]
[311912460,1705496120746,151.0,0.0002298,7]
[311912461,1705496121022,151.0,0.00022999,7]
[311912462,1705496121495,151.0,0.00023,7]
[311912463,1705496121791,151.0,0.00023,7]
[311912464,1705496122492,151.0,0.00023288,7]
[311912465,1705496122828,151.0,0.00023729,7]
[311912466,1705496123589,151.0,0.00024277,7]
[311912467,1705496123884,195.19732,0.00024825,7]
[311912468,1705496135760,1171.06784,0.000229,7]
[311912469,1705496136024,1171.06784,0.0002298,7]
[311912470,1705496136282,1171.06784,0.00022999,7]
[311912471,1705496136541,1171.06784,0.00023,7]
[311912472,1705496136793,1171.06784,0.00023,7]
[311912473,1705496137042,1171.06784,0.00023288,7]
[311912474,1705496137308,1171.06784,0.00023729,7]
[311912475,1705496137552,1171.06784,0.00024277,7]
[311912476,1705496137800,1171.06784,0.00024825,7]
[311912477,1705496138191,1171.06784,0.00025647,7]
[311912478,1705496138510,1171.06784,0.000229,7]
[311912479,1705496138795,1171.06784,0.0002298,7]
[311912480,1705496139225,1171.06784,0.00022999,7]
[311912481,1705496139636,1171.06784,0.00023,7]
[311912482,1705496139987,1171.06784,0.00023,7]
[311912483,1705496140585,1171.06784,0.00023288,7]
[311912484,1705496140870,1171.06784,0.00023729,7]
[311912485,1705496141270,1171.06784,0.00024277,7]
[311912486,1705496141514,1171.06784,0.00024825,7]
[311912487,1705496141768,1171.067849,0.00025647,7]
[311912488,1705496157931,-2000.0,0.0002,2]
[311912489,1705496160687,-2000.0,0.0002,2]
[311912490,1705496182773,179.062921,0.00022907,7]
[311912491,1705496183083,179.062921,0.0002298,7]
[311912492,1705496183371,179.062921,0.00022999,7]
[311912493,1705496183641,179.062921,0.00023,7]
[311912494,1705496183930,179.062921,0.00023,7]
[311912495,1705496184206,179.062921,0.00023455,7]
[311912496,1705496184455,179.062921,0.00023729,7]
[311912497,1705496184724,179.062921,0.00024277,7]
[311912498,1705496185040,179.062921,0.00024825,7]
[311912499,1705496185305,179.062921,0.00025647,7]
[311912500,1705496185584,179.062921,0.00022907,7]
[311912501,1705496185882,179.062921,0.0002298,7]
[311912502,1705496186583,179.062921,0.00022999,7]
[311912503,1705496186936,179.062921,0.00023,7]
[311912504,1705496187222,179.062921,0.00023,7]
[311912505,1705496187680,179.062921,0.00023455,7]
[311912506,1705496187953,179.062921,0.00023729,7]
[311912507,1705496188221,179.062921,0.00024277,7]
[311912508,1705496188529,179.062921,0.00024825,7]
[311912509,1705496188799,179.062929,0.00025647,7]
[311912510,1705496199988,164.616122,0.00022907,7]
[311912511,1705496200254,164.616122,0.0002298,7]
[311912512,1705496200650,164.616122,0.00022999,7]
[311912513,1705496200848,164.616122,0.00023,7]
[311912514,1705496201139,164.616122,0.00023,7]
[311912515,1705496201409,164.616122,0.00023455,7]
[311912516,1705496201711,164.616122,0.00023729,7]
[311912517,1705496201953,164.616122,0.00024277,7]
[311912518,1705496202273,164.616122,0.00024825,7]
[311912519,1705496202602,164.616122,0.00025647,7]
[311912520,1705496202852,164.616122,0.00022907,7]
[311912521,1705496203120,164.616122,0.0002298,7]
[311912522,1705496203412,164.616122,0.00022999,7]
[311912523,1705496203911,164.616122,0.00023,7]
[311912524,1705496203976,164.616122,0.00023,7]
[311912525,1705496204220,164.616122,0.00023455,7]
[311912526,1705496204862,164.616122,0.00023729,7]
[311912527,1705496205138,164.616122,0.00024277,7]
[311912528,1705496205416,164.616122,0.00024825,7]
[311912529,1705496205682,164.616125,0.00025647,7]
[311912530,1705496207857,151.0,0.00022907,7]
[311912531,1705496232602,151.0,0.000229,7]
[311912532,1705496232785,151.0,0.0002298,7]
[311912533,1705496233125,151.0,0.00023,7]
[311912534,1705496233430,151.0,0.00023,7]
[311912535,1705496233712,151.0,0.00023,7]
[311912536,1705496234412,151.0,0.00023288,7]
[311912537,1705496234689,151.0,0.00023729,7]
[311912538,1705496234986,151.0,0.00024277,7]
[311912539,1705496235256,258.037958,0.00024825,7]
[311912540,1705496239223,151.0,0.000229,7]
[311912541,1705496239475,151.0,0.0002298,7]
[311912542,1705496239741,151.0,0.00023,7]
[311912543,1705496240107,198.868977,0.00023,7]
[311912544,1705496243078,151.0,0.000229,7]
[311912545,1705496243341,151.0,0.0002298,7]
[311912546,1705496243631,151.0,0.00023,7]
[311912547,1705496243906,151.0,0.00023,7]
[311912548,1705496244177,195.606909,0.00023,7]
[311912549,1705496247062,151.0,0.000229,7]
[311912550,1705496247288,151.0,0.0002298,7]
[311912551,1705496247571,151.0,0.00023,7]
[311912552,1705496251537,151.0,0.000229,7]
[311912553,1705496251796,203.975721,0.0002298,7]
[311912554,1705496289604,205.32,0.00021176,10]
[311912555,1705496289810,205.32,0.00021695,10]
[311912556,1705496290235,205.32,0.00022213,10]
[311912557,1705496290638,205.32,0.00022732,10]
[311912558,1705496290858,205.32,0.00023251,10]
[311912559,1705496321144,151.0,0.000229,7]
[311912560,1705496321451,177.951881,0.0002298,7]
[311912561,1705496329302,151.0,0.000229,7]
[311912562,1705496329599,151.0,0.0002298,7]
[311912563,1705496329884,151.0,0.00023,7]
[311912564,1705496330149,151.0,0.00023,7]
[311912565,1705496330482,151.0,0.00023,7]
[311912566,1705496330996,151.0,0.00023288,7]